Workbook

Sheet Dashboard
A1: Sent this month: | D1: 1838 | F1: Left process at stage 1: | J1: 878 | L1: Left process at stage 2: | P1: 64 | R1: Exited process: | V1: 463 | X1: Settled: | AA1: 265
A3: Δ from last month: | D3: -163 | F3: Δ from last month: | J3: -20 | L3: Δ from last month: | P3: -6 | R3: Δ from last month: | V3: -29 | X3: Δ from last month: | AA3: -30
A5: Rolling 12 months: | D5: 25866 | F5: Rolling 12 months: | J5: 12691 | L5: Rolling 12 months: | P5: 870 | R5: Rolling 12 months: | V5: 5978 | X5: Rolling 12 months: | AA5: 3919
A7: Left Process Breakdowns - Stage 1:
A9: Reason | H9: This Month | J9: Last Month | L9: Δ
A10: Liability Decision Timeout | H10: 729 | J10: 754 | L10: -25
A11: Other | H11: 146 | J11: 138 | L11: 8
A12: Total | H12: 875 | J12: 892 | L12: -17
A13: Left Process Breakdowns - Stage 2:
A15: Reason | H15: This Month | J15: Last Month | L15: Δ
A16: Interim payment more than £1,000 not agreed: | H16: 0 | J16: 0 | L16: 0
A17: Settlement pack repudiated: | H17: 1 | J17: 0 | L17: 1
A18: Settlement pack timeout: | H18: 30 | J18: 26 | L18: 4
A19: No agreement; Court Proceedings pack: | H19: 39 | J19: 24 | L19: 15
A20: Total | H20: 70 | J20: 50 | L20: 20

Sheet Backing Sheet Data
A1: Reporting date | B1: 2025-04-01
A2: Previous month | B2: 2025-03-01
A4: Rolling 13 CNFs sent | E4: Average General Damages chart data | I4: Left Process Breakdown
Q5: * Oct 22 to Aug 24 fully refreshed - 19/09/2024
A6: Period | B6: Rolling 12 Sent | E6: Row Labels | F6: Ave General Damages | I6: This Month LDT | J6: This Month Other Liability | K6: This Month Interim Payment Not Agreed | L6: This Month Repudiated | M6: This Month Timeout | N6: This Month Court Proceedings | Q6: Period | R6: CNFs Sent | S6: CNFs left at Stage 1 | T6: Stage 2 Exit | U6: Exit process | V6: Court Pack | W6: Settled claims | X6: General Damages
A7: 2024-04-01 | B7: 30184 | E7: 2024-04-01 | F7: 6309.862382 | I7: 729 | J7: 146 | K7: 1 | L7: 1 | M7: 20 | N7: 42 | Q7: 2020-01-01 | R7: 3421 | S7: 1776 | T7: 42 | U7: 860 | V7: 97 | W7: 635 | X7: 4307.368488
A8: 2024-05-01 | B8: 30040 | E8: 2024-05-01 | F8: 6785.602524 | Q8: 2020-02-01 | R8: 4027 | S8: 1499 | T8: 55 | U8: 945 | V8: 96 | W8: 710 | X8: 4367.018
A9: 2024-06-01 | B9: 29760 | E9: 2024-06-01 | F9: 6452.028115 | Q9: 2020-03-01 | R9: 3796 | S9: 1554 | T9: 52 | U9: 895 | V9: 87 | W9: 703 | X9: 4512.42825
A10: 2024-07-01 | B10: 29450 | E10: 2024-07-01 | F10: 6551.44169 | Q10: 2020-04-01 | R10: 2719 | S10: 1520 | T10: 59 | U10: 790 | V10: 74 | W10: 542 | X10: 4269.672158
A11: 2024-08-01 | B11: 29001 | E11: 2024-08-01 | F11: 6180.392565 | Q11: 2020-05-01 | R11: 3673 | S11: 1611 | T11: 54 | U11: 948 | V11: 106 | W11: 616 | X11: 4432.807532
A12: 2024-09-01 | B12: 28528 | E12: 2024-09-01 | F12: 7052.727823 | Q12: 2020-06-01 | R12: 3658 | S12: 1148 | T12: 41 | U12: 688 | V12: 75 | W12: 616 | X12: 4438.777012
A13: 2024-10-01 | B13: 28284 | E13: 2024-10-01 | F13: 6795.443511 | Q13: 2020-07-01 | R13: 3424 | S13: 1662 | T13: 61 | U13: 866 | V13: 90 | W13: 650 | X13: 4519.353969
A14: 2024-11-01 | B14: 27665 | E14: 2024-11-01 | F14: 7163.420847 | Q14: 2020-08-01 | R14: 2207 | S14: 1490 | T14: 50 | U14: 853 | V14: 83 | W14: 563 | X14: 4459.256944
A15: 2024-12-01 | B15: 26609 | E15: 2024-12-01 | F15: 7259.5781 | Q15: 2020-09-01 | R15: 1650 | S15: 1065 | T15: 39 | U15: 549 | V15: 54 | W15: 448 | X15: 4698.719553
A16: 2025-01-01 | B16: 27083 | E16: 2025-01-01 | F16: 6798.954063 | Q16: 2020-10-01 | R16: 1976 | S16: 846 | T16: 36 | U16: 524 | V16: 72 | W16: 468 | X16: 4892.872094
A17: 2025-02-01 | B17: 26589 | E17: 2025-02-01 | F17: 6751.603159 | Q17: 2020-11-01 | R17: 2293 | S17: 819 | T17: 41 | U17: 535 | V17: 57 | W17: 374 | X17: 4706.51901
A18: 2025-03-01 | B18: 26318 | E18: 2025-03-01 | F18: 7203.27383 | Q18: 2020-12-01 | R18: 1846 | S18: 798 | T18: 30 | U18: 427 | V18: 44 | W18: 254 | X18: 4394.581338
A19: 2025-04-01 | B19: 25866 | E19: 2025-04-01 | F19: 6889.661433 | Q19: 2021-01-01 | R19: 2625 | S19: 982 | T19: 33 | U19: 536 | V19: 63 | W19: 401 | X19: 4991.541995
E20: Grand Total | F20: 88193.99004 | Q20: 2021-02-01 | R20: 2670 | S20: 1134 | T20: 26 | U20: 659 | V20: 40 | W20: 417 | X20: 4906.445203
Q21: 2021-03-01 | R21: 2230 | S21: 1112 | T21: 28 | U21: 638 | V21: 44 | W21: 406 | X21: 4773.720418
B22: 19138 | Q22: 2021-04-01 | R22: 1977 | S22: 980 | T22: 37 | U22: 531 | V22: 45 | W22: 364 | X22: 4694.490274
A23: Exit Process Reason | B23: Total | Q23: 2021-05-01 | R23: 2223 | S23: 992 | T23: 26 | U23: 584 | V23: 44 | W23: 383 | X23: 4551.40919
A24: Claim requires further investigation | B24: 9769 | Q24: 2021-06-01 | R24: 1502 | S24: 614 | T24: 23 | U24: 380 | V24: 25 | W24: 343 | X24: 4719.332332
A25: Other | B25: 6754 | Q25: 2021-07-01 | R25: 2276 | S25: 1164 | T25: 37 | U25: 637 | V25: 63 | W25: 451 | X25: 4852.832106
A26: Value of claim exceeds the upper limit | B26: 694 | Q26: 2021-08-01 | R26: 2315 | S26: 993 | T26: 45 | U26: 597 | V26: 57 | W26: 414 | X26: 4846.595869
A27: Duplicated claim | B27: 618 | Q27: 2021-09-01 | R27: 2199 | S27: 928 | T27: 26 | U27: 577 | V27: 40 | W27: 347 | X27: 4774.829394
A28: Failure to provide adequate loss of earnings details | B28: 447 | Q28: 2021-10-01 | R28: 2288 | S28: 1016 | T28: 35 | U28: 561 | V28: 46 | W28: 384 | X28: 4795.169218
A29: Incomplete information provided on CNF | B29: 412 | Q29: 2021-11-01 | R29: 2442 | S29: 992 | T29: 37 | U29: 567 | V29: 54 | W29: 378 | X29: 4960.905582
A30: Stage 1 costs not paid on time | B30: 168 | Q30: 2021-12-01 | R30: 2419 | S30: 994 | T30: 31 | U30: 595 | V30: 40 | W30: 359 | X30: 4906.896155
A31: Claim is too complex for process | B31: 85 | Q31: 2022-01-01 | R31: 2617 | S31: 1055 | T31: 35 | U31: 629 | V31: 39 | W31: 361 | X31: 4801.203628
A32: Interim Payment request not answered and/or paid on time | B32: 63 | Q32: 2022-02-01 | R32: 2456 | S32: 1019 | T32: 36 | U32: 640 | V32: 38 | W32: 371 | X32: 4718.253288
A33: Withdrawl of claim | B33: 57 | Q33: 2022-03-01 | R33: 2609 | S33: 1126 | T33: 43 | U33: 713 | V33: 45 | W33: 426 | X33: 5028.160563
A34: Withdrawal of offer | B34: 28 | Q34: 2022-04-01 | R34: 1952 | S34: 1039 | T34: 38 | U34: 577 | V34: 35 | W34: 351 | X34: 5112.042962
A35: Value of claim below £1,000 | B35: 21 | Q35: 2022-05-01 | R35: 2383 | S35: 1000 | T35: 24 | U35: 539 | V35: 39 | W35: 365 | X35: 4867.454767
A36: Failure to acknowledge CNF on time | B36: 12 | Q36: 2022-06-01 | R36: 2396 | S36: 801 | T36: 32 | U36: 521 | V36: 43 | W36: 346 | X36: 4871.252312
A37: Interim Payment partial offer not accepted | B37: 9 | Q37: 2022-07-01 | R37: 2699 | S37: 1208 | T37: 45 | U37: 717 | V37: 60 | W37: 412 | X37: 4734.900485
A38: Interim payment for child claimant | B38: 1 | Q38: 2022-08-01 | R38: 2101 | S38: 948 | T38: 42 | U38: 561 | V38: 47 | W38: 336 | X38: 4962.193154
Q39: 2022-09-01 | R39: 2418 | S39: 1044 | T39: 32 | U39: 604 | V39: 51 | W39: 406 | X39: 5118.08261
Q40: 2022-10-01 | R40: 2337 | S40: 1012 | T40: 53 | U40: 508 | V40: 40 | W40: 383 | X40: 5258.250574
Q41: 2022-11-01 | R41: 2257 | S41: 1080 | T41: 37 | U41: 543 | V41: 42 | W41: 334 | X41: 4974.681137
Q42: 2022-12-01 | R42: 2344 | S42: 1096 | T42: 37 | U42: 572 | V42: 54 | W42: 366 | X42: 5004.888032
Q43: 2023-01-01 | R43: 2374 | S43: 1100 | T43: 36 | U43: 599 | V43: 44 | W43: 360 | X43: 4797.174527
Q44: 2023-02-01 | R44: 2508 | S44: 1172 | T44: 44 | U44: 601 | V44: 42 | W44: 352 | X44: 6018.619914
Q45: 2023-03-01 | R45: 2631 | S45: 1220 | T45: 43 | U45: 644 | V45: 44 | W45: 331 | X45: 5926.272024
Q46: 2022-12-01 | R46: 1665 | S46: 1126 | T46: 39 | U46: 544 | V46: 34 | W46: 259 | X46: 6090.643706
Q47: 2023-01-01 | R47: 2542 | S47: 1050 | T47: 29 | U47: 557 | V47: 54 | W47: 300 | X47: 5993.902666
Q48: 2023-02-01 | R48: 2355 | S48: 924 | T48: 38 | U48: 444 | V48: 32 | W48: 329 | X48: 5616.056322
Q49: 2023-03-01 | R49: 2656 | S49: 1336 | T49: 43 | U49: 663 | V49: 37 | W49: 391 | X49: 6164.761662
Q50: 2023-04-01 | R50: 2150 | S50: 976 | T50: 28 | U50: 430 | V50: 39 | W50: 304 | X50: 6227.301842
Q51: 2023-05-01 | R51: 2214 | S51: 1178 | T51: 35 | U51: 543 | V51: 47 | W51: 342 | X51: 5656.813187
Q52: 2023-06-01 | R52: 2559 | S52: 1245 | T52: 48 | U52: 529 | V52: 52 | W52: 370 | X52: 6100.508135
Q53: 2023-07-01 | R53: 2469 | S53: 1161 | T53: 37 | U53: 589 | V53: 55 | W53: 349 | X53: 6158.331404
Q54: 2023-08-01 | R54: 2448 | S54: 1340 | T54: 27 | U54: 632 | V54: 52 | W54: 320 | X54: 6244.580437
Q55: 2023-09-01 | R55: 2367 | S55: 1151 | T55: 34 | U55: 625 | V55: 47 | W55: 292 | X55: 6106.239349
Q56: 2023-10-01 | R56: 2492 | S56: 1193 | T56: 50 | U56: 546 | V56: 42 | W56: 337 | X56: 5998.716765
Q57: 2023-11-01 | R57: 2525 | S57: 1288 | T57: 35 | U57: 675 | V57: 22 | W57: 367 | X57: 6175.655258
Q58: 2023-12-01 | R58: 1617 | S58: 1117 | T58: 32 | U58: 474 | V58: 29 | W58: 286 | X58: 6782.117937
Q59: 2024-01-01 | R59: 2497 | S59: 1151 | T59: 26 | U59: 544 | V59: 39 | W59: 343 | X59: 5727.495685
Q60: 2024-02-01 | R60: 2272 | S60: 1018 | T60: 26 | U60: 454 | V60: 31 | W60: 370 | X60: 6175.213135
Q61: 2024-03-01 | R61: 2290 | S61: 1171 | T61: 33 | U61: 461 | V61: 27 | W61: 353 | X61: 6227.183937
Q62: 2024-04-01 | R62: 2284 | S62: 1112 | T62: 18 | U62: 481 | V62: 32 | W62: 319 | X62: 6309.862382
Q63: 2024-05-01 | R63: 2006 | S63: 1180 | T63: 31 | U63: 479 | V63: 24 | W63: 309 | X63: 6785.602524
Q64: 2024-06-01 | R64: 1934 | S64: 1119 | T64: 43 | U64: 429 | V64: 37 | W64: 313 | X64: 6452.028115
Q65: 2024-07-01 | R65: 2249 | S65: 1169 | T65: 45 | U65: 495 | V65: 35 | W65: 343 | X65: 6551.44169
Q66: 2024-08-01 | R66: 2020 | S66: 1015 | T66: 30 | U66: 443 | V66: 36 | W66: 269 | X66: 6180.392565
Q67: 2024-09-01 | R67: 1975 | S67: 984 | T67: 38 | U67: 502 | V67: 30 | W67: 294 | X67: 7052.727823
Q68: 2024-10-01 | R68: 2123 | S68: 1030 | T68: 30 | U68: 459 | V68: 47 | W68: 356 | X68: 6795.443511
Q69: 2024-11-01 | R69: 1873 | S69: 903 | T69: 39 | U69: 488 | V69: 45 | W69: 295 | X69: 7163.420847
Q70: 2024-12-01 | R70: 1469 | S70: 835 | T70: 38 | U70: 406 | V70: 28 | W70: 258 | X70: 7259.5781
Q71: 2025-01-01 | R71: 2091 | S71: 899 | T71: 18 | U71: 455 | V71: 42 | W71: 315 | X71: 6798.954063
Q72: 2025-02-01 | R72: 2003 | S72: 669 | T72: 26 | U72: 386 | V72: 24 | W72: 288 | X72: 6751.603159
Q73: 2025-03-01 | R73: 2001 | S73: 898 | T73: 31 | U73: 492 | V73: 39 | W73: 295 | X73: 7203.27383
Q74: 2025-04-01 | R74: 1838 | S74: 878 | T74: 22 | U74: 463 | V74: 42 | W74: 265 | X74: 6889.661433

Sheet vELDashboard (hidden)
B1: =SUBTOTAL(9,vELDashboard[CNFs Sent]) -> 132190 | C1: =SUBTOTAL(9,vELDashboard[CNFs left at Stage 1]) -> 58972 | D1: =SUBTOTAL(9,vELDashboard[Stage 2 Exit]) -> 1859 | E1: =SUBTOTAL(9,vELDashboard[Exit process]) -> 29828 | F1: =SUBTOTAL(9,vELDashboard[Court Pack]) -> 2393 | G1: =SUBTOTAL(9,vELDashboard[Settled claims]) -> 16221 | H1: =SUBTOTAL(9,vELDashboard[General Damages]) -> 397297.4698 | R1: * Figures refreshed from May 23 - Apr 25
A2: Period | B2: CNFs Sent | C2: CNFs left at Stage 1 | D2: Stage 2 Exit | E2: Exit process | F2: Court Pack | G2: Settled claims | H2: General Damages | J2: Period | K2: Rolling 13 CNF Sent | L2: Rolling 13 CNF Left at Stage 1 | M2: Rolling 13 Stage 2 Exit | N2: Rolling 13 Exit Process | O2: Rolling 13 Court Pack | P2: Rolling 13 Settled Claims | R2: Period | S2: CNFs Sent | T2: CNFs left at Stage 1 | U2: Stage 2 Exit | V2: Exit process | W2: Court Pack | X2: Settled claims | Y2: General Damages
A3: 2019-09-01 | B3: 1300 | C3: 5 | D3: 0 | E3: 13 | F3: 2 | G3: 3 | H3: 3190.543333 | J3: =vELDashboard[[#This Row],[Period]] -> 2019-09-01 | R3: =tblPrevious12V2[[#This Row],[Period]] -> 2019-09-01 | S3: 3421 | T3: 1776 | U3: 42 | V3: 860 | W3: 97 | X3: 635 | Y3: 4307.368488
A4: 2019-10-01 | B4: 1629 | C4: 538 | D4: 19 | E4: 292 | F4: 40 | G4: 57 | H4: 4776.901929 | J4: =vELDashboard[[#This Row],[Period]] -> 2019-10-01 | R4: =tblPrevious12V2[[#This Row],[Period]] -> 2019-10-01 | S4: 4027 | T4: 1499 | U4: 55 | V4: 945 | W4: 96 | X4: 710 | Y4: 4367.018
A5: 2019-11-01 | B5: 1537 | C5: 619 | D5: 15 | E5: 332 | F5: 32 | G5: 73 | H5: 5369.233698 | J5: =vELDashboard[[#This Row],[Period]] -> 2019-11-01 | R5: =tblPrevious12V2[[#This Row],[Period]] -> 2019-11-01 | S5: 3796 | T5: 1554 | U5: 52 | V5: 895 | W5: 87 | X5: 703 | Y5: 4512.42825
A6: 2019-12-01 | B6: 1109 | C6: 551 | D6: 21 | E6: 298 | F6: 32 | G6: 87 | H6: 5126.881264 | J6: =vELDashboard[[#This Row],[Period]] -> 2019-12-01 | R6: =tblPrevious12V2[[#This Row],[Period]] -> 2019-12-01 | S6: 2719 | T6: 1520 | U6: 59 | V6: 790 | W6: 74 | X6: 542 | Y6: 4269.672158
A7: 2020-01-01 | B7: 1557 | C7: 572 | D7: 15 | E7: 388 | F7: 44 | G7: 93 | H7: 4997.619032 | J7: =vELDashboard[[#This Row],[Period]] -> 2020-01-01 | R7: =tblPrevious12V2[[#This Row],[Period]] -> 2020-01-01 | S7: 3673 | T7: 1611 | U7: 54 | V7: 948 | W7: 106 | X7: 616 | Y7: 4432.807532
A8: 2020-02-01 | B8: 1586 | C8: 434 | D8: 18 | E8: 253 | F8: 30 | G8: 68 | H8: 4884.762941 | J8: =vELDashboard[[#This Row],[Period]] -> 2020-02-01 | R8: =tblPrevious12V2[[#This Row],[Period]] -> 2020-02-01 | S8: 3658 | T8: 1148 | U8: 41 | V8: 688 | W8: 75 | X8: 616 | Y8: 4438.777012
A9: 2020-03-01 | B9: 1487 | C9: 682 | D9: 21 | E9: 375 | F9: 42 | G9: 84 | H9: 5241.184404 | J9: =vELDashboard[[#This Row],[Period]] -> 2020-03-01 | R9: =tblPrevious12V2[[#This Row],[Period]] -> 2020-03-01 | S9: 3424 | T9: 1662 | U9: 61 | V9: 866 | W9: 90 | X9: 650 | Y9: 4519.353969
A10: 2020-04-01 | B10: 889 | C10: 571 | D10: 17 | E10: 343 | F10: 34 | G10: 86 | H10: 5054.388255 | J10: =vELDashboard[[#This Row],[Period]] -> 2020-04-01 | R10: =tblPrevious12V2[[#This Row],[Period]] -> 2020-04-01 | S10: 2207 | T10: 1490 | U10: 50 | V10: 853 | W10: 83 | X10: 563 | Y10: 4459.256944
A11: 2020-05-01 | B11: 729 | C11: 410 | D11: 21 | E11: 218 | F11: 25 | G11: 81 | H11: 4704.504691 | J11: =vELDashboard[[#This Row],[Period]] -> 2020-05-01 | R11: =tblPrevious12V2[[#This Row],[Period]] -> 2020-05-01 | S11: 1650 | T11: 1065 | U11: 39 | V11: 549 | W11: 54 | X11: 448 | Y11: 4698.719553
A12: 2020-06-01 | B12: 899 | C12: 309 | D12: 14 | E12: 228 | F12: 41 | G12: 80 | H12: 6191.9965 | J12: =vELDashboard[[#This Row],[Period]] -> 2020-06-01 | R12: =tblPrevious12V2[[#This Row],[Period]] -> 2020-06-01 | S12: 1976 | T12: 846 | U12: 36 | V12: 524 | W12: 72 | X12: 468 | Y12: 4892.872094
A13: 2020-07-01 | B13: 1151 | C13: 355 | D13: 11 | E13: 199 | F13: 24 | G13: 59 | H13: 4966.820169 | J13: =vELDashboard[[#This Row],[Period]] -> 2020-07-01 | R13: =tblPrevious12V2[[#This Row],[Period]] -> 2020-07-01 | S13: 2293 | T13: 819 | U13: 41 | V13: 535 | W13: 57 | X13: 374 | Y13: 4706.51901
A14: 2020-08-01 | B14: 1036 | C14: 324 | D14: 11 | E14: 201 | F14: 25 | G14: 60 | H14: 4618.479 | J14: =vELDashboard[[#This Row],[Period]] -> 2020-08-01 | K14: =SUM(B2:B14) -> 14909 | L14: 5370 | M14: 183 | N14: 3140 | O14: 371 | P14: =SUM(G2:G14) -> 831 | R14: =tblPrevious12V2[[#This Row],[Period]] -> 2020-08-01 | S14: 1846 | T14: 798 | U14: 30 | V14: 427 | W14: 44 | X14: 254 | Y14: 4394.581338
A15: 2020-09-01 | B15: 1274 | C15: 416 | D15: 11 | E15: 209 | F15: 25 | G15: 77 | H15: 5428.286103 | J15: =vELDashboard[[#This Row],[Period]] -> 2020-09-01 | K15: =SUM(B3:B15) -> 16183 | L15: 5786 | M15: 194 | N15: 3349 | O15: 396 | P15: 908 | R15: =tblPrevious12V2[[#This Row],[Period]] -> 2020-09-01 | S15: 2625 | T15: 982 | U15: 33 | V15: 536 | W15: 63 | X15: 401 | Y15: 4991.541995
A16: 2020-10-01 | B16: 1296 | C16: 434 | D16: 11 | E16: 268 | F16: 20 | G16: 81 | H16: 5398.441975 | J16: =vELDashboard[[#This Row],[Period]] -> 2020-10-01 | K16: =SUM(B4:B16) -> 16179 | L16: 6215 | M16: 205 | N16: 3604 | O16: 414 | P16: 986 | R16: =tblPrevious12V2[[#This Row],[Period]] -> 2020-10-01 | S16: 2670 | T16: 1134 | U16: 26 | V16: 659 | W16: 40 | X16: 417 | Y16: 4906.445203
A17: 2020-11-01 | B17: 1169 | C17: 445 | D17: 12 | E17: 280 | F17: 28 | G17: 80 | H17: 5099.475 | J17: =vELDashboard[[#This Row],[Period]] -> 2020-11-01 | K17: =SUM(B5:B17) -> 15719 | L17: 6122 | M17: 198 | N17: 3592 | O17: 402 | P17: 1009 | R17: =tblPrevious12V2[[#This Row],[Period]] -> 2020-11-01 | S17: 2230 | T17: 1112 | U17: 28 | V17: 638 | W17: 44 | X17: 406 | Y17: 4773.720418
A18: 2020-12-01 | B18: 1044 | C18: 410 | D18: 15 | E18: 237 | F18: 28 | G18: 95 | H18: 6195.794842 | J18: =vELDashboard[[#This Row],[Period]] -> 2020-12-01 | K18: =SUM(B6:B18) -> 15226 | L18: 5913 | M18: 198 | N18: 3497 | O18: 398 | P18: 1031 | R18: =tblPrevious12V2[[#This Row],[Period]] -> 2020-12-01 | S18: 1977 | T18: 980 | U18: 37 | V18: 531 | W18: 45 | X18: 364 | Y18: 4694.490274
A19: 2021-01-01 | B19: 1221 | C19: 421 | D19: 8 | E19: 240 | F19: 19 | G19: 69 | H19: 4869.982173 | J19: =vELDashboard[[#This Row],[Period]] -> 2021-01-01 | K19: =SUM(B7:B19) -> 15338 | L19: 5783 | M19: 185 | N19: 3439 | O19: 385 | P19: 1013 | R19: =tblPrevious12V2[[#This Row],[Period]] -> 2021-01-01 | S19: 2223 | T19: 992 | U19: 26 | V19: 584 | W19: 44 | X19: 383 | Y19: 4551.40919
A20: 2021-02-01 | B20: 1316 | C20: 321 | D20: 14 | E20: 189 | F20: 17 | G20: 83 | H20: 5544.077349 | J20: =vELDashboard[[#This Row],[Period]] -> 2021-02-01 | K20: =SUM(B8:B20) -> 15097 | L20: 5532 | M20: 184 | N20: 3240 | O20: 358 | P20: 1003 | R20: =tblPrevious12V2[[#This Row],[Period]] -> 2021-02-01 | S20: 1502 | T20: 614 | U20: 23 | V20: 380 | W20: 25 | X20: 343 | Y20: 4719.332332
A21: 2021-03-01 | B21: 1512 | C21: 509 | D21: 9 | E21: 279 | F21: 26 | G21: 104 | H21: 5215.219134 | J21: =vELDashboard[[#This Row],[Period]] -> 2021-03-01 | K21: =SUM(B9:B21) -> 15023 | L21: 5607 | M21: 175 | N21: 3266 | O21: 354 | P21: 1039 | R21: =tblPrevious12V2[[#This Row],[Period]] -> 2021-03-01 | S21: 2276 | T21: 1164 | U21: 37 | V21: 637 | W21: 63 | X21: 451 | Y21: 4852.832106
A22: 2021-04-01 | B22: 1396 | C22: 391 | D22: 19 | E22: 260 | F22: 29 | G22: 83 | H22: 5573.904578 | J22: =vELDashboard[[#This Row],[Period]] -> 2021-04-01 | K22: =SUM(B10:B22) -> 14932 | L22: 5316 | M22: 173 | N22: 3151 | O22: 341 | P22: 1038 | R22: =tblPrevious12V2[[#This Row],[Period]] -> 2021-04-01 | S22: 2315 | T22: 993 | U22: 45 | V22: 597 | W22: 57 | X22: 414 | Y22: 4846.595869
A23: 2021-05-01 | B23: 1338 | C23: 415 | D23: 13 | E23: 266 | F23: 23 | G23: 76 | H23: 5065.922368 | J23: =vELDashboard[[#This Row],[Period]] -> 2021-05-01 | K23: =SUM(B11:B23) -> 15381 | L23: 5160 | M23: 169 | N23: 3074 | O23: 330 | P23: 1028 | R23: =tblPrevious12V2[[#This Row],[Period]] -> 2021-05-01 | S23: 2199 | T23: 928 | U23: 26 | V23: 577 | W23: 40 | X23: 347 | Y23: 4774.829394
A24: 2021-06-01 | B24: 1426 | C24: 481 | D24: 14 | E24: 283 | F24: 19 | G24: 72 | H24: 5751.547916 | J24: =vELDashboard[[#This Row],[Period]] -> 2021-06-01 | K24: =SUM(B12:B24) -> 16078 | L24: 5231 | M24: 162 | N24: 3139 | O24: 324 | P24: 1019 | R24: =tblPrevious12V2[[#This Row],[Period]] -> 2021-06-01 | S24: 2288 | T24: 1016 | U24: 35 | V24: 561 | W24: 46 | X24: 384 | Y24: 4795.169218
A25: 2021-07-01 | B25: 1473 | C25: 456 | D25: 13 | E25: 258 | F25: 18 | G25: 68 | H25: 5529.2 | J25: =vELDashboard[[#This Row],[Period]] -> 2021-07-01 | K25: =SUM(B13:B25) -> 16652 | L25: 5378 | M25: 161 | N25: 3169 | O25: 301 | P25: 1007 | R25: =tblPrevious12V2[[#This Row],[Period]] -> 2021-07-01 | S25: 2442 | T25: 992 | U25: 37 | V25: 567 | W25: 54 | X25: 378 | Y25: 4960.905582
A26: 2021-08-01 | B26: 2214 | C26: 439 | D26: 9 | E26: 275 | F26: 15 | G26: 90 | H26: 5745.504444 | J26: =vELDashboard[[#This Row],[Period]] -> 2021-08-01 | K26: =SUM(B14:B26) -> 17715 | L26: 5462 | M26: 159 | N26: 3245 | O26: 292 | P26: 1038 | R26: =tblPrevious12V2[[#This Row],[Period]] -> 2021-08-01 | S26: 2419 | T26: 994 | U26: 31 | V26: 595 | W26: 40 | X26: 359 | Y26: 4906.896155
A27: 2021-09-01 | B27: 2698 | C27: 810 | D27: 19 | E27: 453 | F27: 35 | G27: 181 | H27: 5531.374696 | J27: =vELDashboard[[#This Row],[Period]] -> 2021-09-01 | K27: =SUM(B15:B27) -> 19377 | L27: 5948 | M27: 167 | N27: 3497 | O27: 302 | P27: 1159 | R27: =tblPrevious12V2[[#This Row],[Period]] -> 2021-09-01 | S27: 2617 | T27: 1055 | U27: 35 | V27: 629 | W27: 39 | X27: 361 | Y27: 4801.203628
A28: 2021-10-01 | B28: 2585 | C28: 1182 | D28: 36 | E28: 664 | F28: 38 | G28: 370 | H28: 5405.343108 | J28: =vELDashboard[[#This Row],[Period]] -> 2021-10-01 | K28: =SUM(B16:B28) -> 20688 | L28: 6714 | M28: 192 | N28: 3952 | O28: 315 | P28: 1452 | R28: =tblPrevious12V2[[#This Row],[Period]] -> 2021-10-01 | S28: 2456 | T28: 1019 | U28: 36 | V28: 640 | W28: 38 | X28: 371 | Y28: 4718.253288
A29: 2021-11-01 | B29: 2695 | C29: 1279 | D29: 43 | E29: 734 | F29: 45 | G29: 425 | H29: 5992.216988 | J29: =vELDashboard[[#This Row],[Period]] -> 2021-11-01 | K29: =SUM(B17:B29) -> 22087 | L29: 7559 | M29: 224 | N29: 4418 | O29: 340 | P29: 1796 | R29: =tblPrevious12V2[[#This Row],[Period]] -> 2021-11-01 | S29: 2609 | T29: 1126 | U29: 43 | V29: 713 | W29: 45 | X29: 426 | Y29: 5028.160563
A30: 2021-12-01 | B30: 2048 | C30: 1206 | D30: 38 | E30: 600 | F30: 35 | G30: 349 | H30: 5779.934154 | J30: =vELDashboard[[#This Row],[Period]] -> 2021-12-01 | K30: =SUM(B18:B30) -> 22966 | L30: 8320 | M30: 250 | N30: 4738 | O30: 347 | P30: 2065 | R30: =tblPrevious12V2[[#This Row],[Period]] -> 2021-12-01 | S30: 1952 | T30: 1039 | U30: 38 | V30: 577 | W30: 35 | X30: 351 | Y30: 5112.042962
A31: 2022-01-01 | B31: 2551 | C31: 1121 | D31: 24 | E31: 549 | F31: 39 | G31: 354 | H31: 5752.740564 | J31: =vELDashboard[[#This Row],[Period]] -> 2022-01-01 | K31: =SUM(B19:B31) -> 24473 | L31: 9031 | M31: 259 | N31: 5050 | O31: 358 | P31: 2324 | R31: =tblPrevious12V2[[#This Row],[Period]] -> 2022-01-01 | S31: 2383 | T31: 1000 | U31: 24 | V31: 539 | W31: 39 | X31: 365 | Y31: 4867.454767
A32: 2022-02-01 | B32: 2440 | C32: 899 | D32: 32 | E32: 527 | F32: 43 | G32: 339 | H32: 5757.15702 | J32: =vELDashboard[[#This Row],[Period]] -> 2022-02-01 | K32: =SUM(B20:B32) -> 25692 | L32: 9509 | M32: 283 | N32: 5337 | O32: 382 | P32: 2594 | R32: =tblPrevious12V2[[#This Row],[Period]] -> 2022-02-01 | S32: 2396 | T32: 801 | U32: 32 | V32: 521 | W32: 43 | X32: 346 | Y32: 4871.252312
A33: 2022-03-01 | B33: 2845 | C33: 1265 | D33: 43 | E33: 684 | F33: 60 | G33: 349 | H33: 5552.485128 | J33: =vELDashboard[[#This Row],[Period]] -> 2022-03-01 | K33: =SUM(B21:B33) -> 27221 | L33: 10453 | M33: 312 | N33: 5832 | O33: 425 | P33: 2860 | R33: =tblPrevious12V2[[#This Row],[Period]] -> 2022-03-01 | S33: 2699 | T33: 1208 | U33: 45 | V33: 717 | W33: 60 | X33: 412 | Y33: 4734.900485
A34: 2022-04-01 | B34: 2207 | C34: 1104 | D34: 42 | E34: 577 | F34: 47 | G34: 337 | H34: 6008.58997 | J34: =vELDashboard[[#This Row],[Period]] -> 2022-04-01 | K34: =SUM(B22:B34) -> 27916 | L34: 11048 | M34: 345 | N34: 6130 | O34: 446 | P34: 3093 | R34: =tblPrevious12V2[[#This Row],[Period]] -> 2022-04-01 | S34: 2101 | T34: 948 | U34: 42 | V34: 561 | W34: 47 | X34: 336 | Y34: 4962.193154
A35: 2022-05-01 | B35: 2555 | C35: 1200 | D35: 32 | E35: 632 | F35: 51 | G35: 406 | H35: 5887.383497 | J35: =vELDashboard[[#This Row],[Period]] -> 2022-05-01 | K35: =SUM(B23:B35) -> 29075 | L35: 11857 | M35: 358 | N35: 6502 | O35: 468 | P35: 3416 | R35: =tblPrevious12V2[[#This Row],[Period]] -> 2022-05-01 | S35: 2418 | T35: 1044 | U35: 32 | V35: 604 | W35: 51 | X35: 406 | Y35: 5118.08261
A36: 2022-06-01 | B36: 2459 | C36: 1172 | D36: 53 | E36: 540 | F36: 40 | G36: 382 | H36: 6153.585366 | J36: =vELDashboard[[#This Row],[Period]] -> 2022-06-01 | K36: =SUM(B24:B36) -> 30196 | L36: 12614 | M36: 398 | N36: 6776 | O36: 485 | P36: 3722 | R36: =tblPrevious12V2[[#This Row],[Period]] -> 2022-06-01 | S36: 2337 | T36: 1012 | U36: 53 | V36: 508 | W36: 40 | X36: 383 | Y36: 5258.250574
A37: 2022-07-01 | B37: 2369 | C37: 1243 | D37: 37 | E37: 557 | F37: 40 | G37: 320 | H37: 5775.748187 | J37: =vELDashboard[[#This Row],[Period]] -> 2022-07-01 | K37: =SUM(B25:B37) -> 31139 | L37: 13376 | M37: 421 | N37: 7050 | O37: 506 | P37: 3970 | R37: =tblPrevious12V2[[#This Row],[Period]] -> 2022-07-01 | S37: 2257 | T37: 1080 | U37: 37 | V37: 543 | W37: 42 | X37: 334 | Y37: 4974.681137
A38: 2022-08-01 | B38: 2499 | C38: 1244 | D38: 37 | E38: 592 | F38: 53 | G38: 351 | H38: 5794.456666 | J38: =vELDashboard[[#This Row],[Period]] -> 2022-08-01 | K38: =SUM(B26:B38) -> 32165 | L38: 14164 | M38: 445 | N38: 7384 | O38: 541 | P38: 4253 | R38: =tblPrevious12V2[[#This Row],[Period]] -> 2022-08-01 | S38: 2344 | T38: 1096 | U38: 37 | V38: 572 | W38: 54 | X38: 366 | Y38: 5004.888032
A39: 2022-09-01 | B39: 2527 | C39: 1231 | D39: 36 | E39: 602 | F39: 43 | G39: 335 | H39: 5781.38 | J39: =vELDashboard[[#This Row],[Period]] -> 2022-09-01 | K39: =SUM(B27:B39) -> 32478 | L39: 14956 | M39: 472 | N39: 7711 | O39: 569 | P39: 4498 | R39: =tblPrevious12V2[[#This Row],[Period]] -> 2022-09-01 | S39: 2374 | T39: 1100 | U39: 36 | V39: 599 | W39: 44 | X39: 360 | Y39: 4797.174527
A40: 2022-10-01 | B40: 2508 | C40: 1172 | D40: 44 | E40: 601 | F40: 42 | G40: 352 | H40: 6018.619914 | J40: =vELDashboard[[#This Row],[Period]] -> 2022-10-01 | K40: =SUM(B28:B40) -> 32288 | L40: 15318 | M40: 497 | N40: 7859 | O40: 576 | P40: 4669 | R40: =tblPrevious12V2[[#This Row],[Period]] -> 2022-10-01 | S40: 2508 | T40: 1172 | U40: 44 | V40: 601 | W40: 42 | X40: 352 | Y40: 6018.619914
A41: 2022-11-01 | B41: 2631 | C41: 1220 | D41: 43 | E41: 644 | F41: 44 | G41: 331 | H41: 5926.272024 | J41: =vELDashboard[[#This Row],[Period]] -> 2022-11-01 | K41: =SUM(B29:B41) -> 32334 | L41: 15356 | M41: 504 | N41: 7839 | O41: 582 | P41: 4630 | R41: =tblPrevious12V2[[#This Row],[Period]] -> 2022-11-01 | S41: 2631 | T41: 1220 | U41: 43 | V41: 644 | W41: 44 | X41: 331 | Y41: 5926.272024
A42: 2022-12-01 | B42: 1666 | C42: 1126 | D42: 39 | E42: 544 | F42: 34 | G42: 259 | H42: 6090.643706 | J42: =vELDashboard[[#This Row],[Period]] -> 2022-12-01 | K42: =SUM(B30:B42) -> 31305 | L42: 15203 | M42: 500 | N42: 7649 | O42: 571 | P42: 4464 | R42: 2022-12-01 | S42: 1665 | T42: 1126 | U42: 39 | V42: 544 | W42: 34 | X42: 259 | Y42: 6090.643706
A43: 2023-01-01 | B43: 2542 | C43: 1050 | D43: 29 | E43: 557 | F43: 54 | G43: 300 | H43: 5993.902666 | J43: =vELDashboard[[#This Row],[Period]] -> 2023-01-01 | K43: =SUM(B31:B43) -> 31799 | L43: 15047 | M43: 491 | N43: 7606 | O43: 590 | P43: 4415 | R43: 2023-01-01 | S43: 2542 | T43: 1050 | U43: 29 | V43: 557 | W43: 54 | X43: 300 | Y43: 5993.902666
A44: 2023-02-01 | B44: 2355 | C44: 924 | D44: 38 | E44: 444 | F44: 32 | G44: 329 | H44: 5616.056322 | J44: =vELDashboard[[#This Row],[Period]] -> 2023-02-01 | K44: =SUM(B32:B44) -> 31603 | L44: 14850 | M44: 505 | N44: 7501 | O44: 583 | P44: 4390 | R44: 2023-02-01 | S44: 2355 | T44: 924 | U44: 38 | V44: 444 | W44: 32 | X44: 329 | Y44: 5616.056322
A45: 2023-03-01 | B45: 2656 | C45: 1336 | D45: 43 | E45: 663 | F45: 37 | G45: 391 | H45: 6164.761662 | J45: =vELDashboard[[#This Row],[Period]] -> 2023-03-01 | K45: =SUM(B33:B45) -> 31819 | L45: 15287 | M45: 516 | N45: 7637 | O45: 577 | P45: 4442 | R45: 2023-03-01 | S45: 2656 | T45: 1336 | U45: 43 | V45: 663 | W45: 37 | X45: 391 | Y45: 6164.761662
A46: 2023-04-01 | B46: 2150 | C46: 976 | D46: 28 | E46: 430 | F46: 39 | G46: 304 | H46: 6227.301842 | J46: =vELDashboard[[#This Row],[Period]] -> 2023-04-01 | K46: =SUM(B34:B46) -> 31124 | L46: 14998 | M46: 501 | N46: 7383 | O46: 556 | P46: 4397 | R46: 2023-04-01 | S46: 2150 | T46: 976 | U46: 28 | V46: 430 | W46: 39 | X46: 304 | Y46: 6227.301842
A47: 2023-05-01 | B47: 2214 | C47: 1178 | D47: 35 | E47: 543 | F47: 47 | G47: 342 | H47: 5656.813187 | J47: =vELDashboard[[#This Row],[Period]] -> 2023-05-01 | K47: =SUM(B35:B47) -> 31131 | L47: 15072 | M47: 494 | N47: 7349 | O47: 556 | P47: 4402 | R47: 2023-05-01 | S47: 2214 | T47: 1178 | U47: 35 | V47: 543 | W47: 47 | X47: 342 | Y47: 5656.813187
A48: 2023-06-01 | B48: 2559 | C48: 1245 | D48: 48 | E48: 529 | F48: 52 | G48: 370 | H48: 6100.508135 | J48: =vELDashboard[[#This Row],[Period]] -> 2023-06-01 | K48: =SUM(B36:B48) -> 31135 | L48: 15117 | M48: 510 | N48: 7246 | O48: 557 | P48: 4366 | R48: 2023-06-01 | S48: 2559 | T48: 1245 | U48: 48 | V48: 529 | W48: 52 | X48: 370 | Y48: 6100.508135
A49: 2023-07-01 | B49: 2469 | C49: 1161 | D49: 37 | E49: 589 | F49: 55 | G49: 349 | H49: 6158.331404 | J49: =vELDashboard[[#This Row],[Period]] -> 2023-07-01 | K49: =SUM(B37:B49) -> 31145 | L49: 15106 | M49: 494 | N49: 7295 | O49: 572 | P49: 4333 | R49: 2023-07-01 | S49: 2469 | T49: 1161 | U49: 37 | V49: 589 | W49: 55 | X49: 349 | Y49: 6158.331404
A50: 2023-08-01 | B50: 2448 | C50: 1340 | D50: 27 | E50: 632 | F50: 52 | G50: 320 | H50: 6244.580437 | J50: =vELDashboard[[#This Row],[Period]] -> 2023-08-01 | K50: =SUM(B38:B50) -> 31224 | L50: 15203 | M50: 484 | N50: 7370 | O50: 584 | P50: 4333 | R50: 2023-08-01 | S50: 2448 | T50: 1340 | U50: 27 | V50: 632 | W50: 52 | X50: 320 | Y50: 6244.580437
A51: 2023-09-01 | B51: 2367 | C51: 1151 | D51: 34 | E51: 625 | F51: 47 | G51: 292 | H51: 6106.239349 | J51: =vELDashboard[[#This Row],[Period]] -> 2023-09-01 | K51: =SUM(B39:B51) -> 31092 | L51: 15110 | M51: 481 | N51: 7403 | O51: 578 | P51: 4274 | R51: 2023-09-01 | S51: 2367 | T51: 1151 | U51: 34 | V51: 625 | W51: 47 | X51: 292 | Y51: 6106.239349
A52: 2023-10-01 | B52: 2492 | C52: 1193 | D52: 50 | E52: 546 | F52: 42 | G52: 337 | H52: 5998.716765 | J52: =vELDashboard[[#This Row],[Period]] -> 2023-10-01 | K52: =SUM(B40:B52) -> 31057 | L52: 15072 | M52: 495 | N52: 7347 | O52: 577 | P52: 4276 | R52: 2023-10-01 | S52: 2492 | T52: 1193 | U52: 50 | V52: 546 | W52: 42 | X52: 337 | Y52: 5998.716765
A53: 2023-11-01 | B53: 2525 | C53: 1288 | D53: 35 | E53: 675 | F53: 22 | G53: 367 | H53: 6175.655258 | J53: =vELDashboard[[#This Row],[Period]] -> 2023-11-01 | K53: =SUM(B41:B53) -> 31074 | L53: 15188 | M53: 486 | N53: 7421 | O53: 557 | P53: 4291 | R53: 2023-11-01 | S53: 2525 | T53: 1288 | U53: 35 | V53: 675 | W53: 22 | X53: 367 | Y53: 6175.655258
A54: 2023-12-01 | B54: 1617 | C54: 1117 | D54: 32 | E54: 474 | F54: 29 | G54: 286 | H54: 6782.117937 | J54: =vELDashboard[[#This Row],[Period]] -> 2023-12-01 | K54: =SUM(B42:B54) -> 30060 | L54: 15085 | M54: 475 | N54: 7251 | O54: 542 | P54: 4246 | R54: 2023-12-01 | S54: 1617 | T54: 1117 | U54: 32 | V54: 474 | W54: 29 | X54: 286 | Y54: 6782.117937
A55: 2024-01-01 | B55: 2497 | C55: 1151 | D55: 26 | E55: 544 | F55: 39 | G55: 343 | H55: 5727.495685 | J55: =vELDashboard[[#This Row],[Period]] -> 2024-01-01 | K55: =SUM(B43:B55) -> 30891 | L55: 15110 | M55: 462 | N55: 7251 | O55: 547 | P55: 4330 | R55: 2024-01-01 | S55: 2497 | T55: 1151 | U55: 26 | V55: 544 | W55: 39 | X55: 343 | Y55: 5727.495685
A56: 2024-02-01 | B56: 2272 | C56: 1018 | D56: 26 | E56: 454 | F56: 31 | G56: 370 | H56: 6175.213135 | J56: =vELDashboard[[#This Row],[Period]] -> 2024-02-01 | K56: =SUM(B44:B56) -> 30621 | L56: 15078 | M56: 459 | N56: 7148 | O56: 524 | P56: 4400 | R56: 2024-02-01 | S56: 2272 | T56: 1018 | U56: 26 | V56: 454 | W56: 31 | X56: 370 | Y56: 6175.213135
A57: 2024-03-01 | B57: 2290 | C57: 1171 | D57: 33 | E57: 461 | F57: 27 | G57: 353 | H57: 6227.183937 | J57: =vELDashboard[[#This Row],[Period]] -> 2024-03-01 | K57: =SUM(B45:B57) -> 30556 | L57: 15325 | M57: 454 | N57: 7165 | O57: 519 | P57: 4424 | R57: 2024-03-01 | S57: 2290 | T57: 1171 | U57: 33 | V57: 461 | W57: 27 | X57: 353 | Y57: 6227.183937
A58: 2024-04-01 | B58: 2284 | C58: 1112 | D58: 18 | E58: 481 | F58: 32 | G58: 319 | H58: 6309.862382 | J58: =vELDashboard[[#This Row],[Period]] -> 2024-04-01 | K58: =SUM(B46:B58) -> 30184 | L58: 15101 | M58: 429 | N58: 6983 | O58: 514 | P58: 4352 | R58: 2024-04-01 | S58: 2284 | T58: 1112 | U58: 18 | V58: 481 | W58: 32 | X58: 319 | Y58: 6309.862382
A59: 2024-05-01 | B59: 2006 | C59: 1180 | D59: 31 | E59: 479 | F59: 24 | G59: 309 | H59: 6785.602524 | J59: =vELDashboard[[#This Row],[Period]] -> 2024-05-01 | K59: =SUM(B47:B59) -> 30040 | L59: 15305 | M59: 432 | N59: 7032 | O59: 499 | P59: 4357 | R59: 2024-05-01 | S59: 2006 | T59: 1180 | U59: 31 | V59: 479 | W59: 24 | X59: 309 | Y59: 6785.602524
A60: 2024-06-01 | B60: 1934 | C60: 1119 | D60: 43 | E60: 429 | F60: 37 | G60: 313 | H60: 6452.028115 | J60: =vELDashboard[[#This Row],[Period]] -> 2024-06-01 | K60: =SUM(B48:B60) -> 29760 | L60: 15246 | M60: 440 | N60: 6918 | O60: 489 | P60: 4328 | R60: 2024-06-01 | S60: 1934 | T60: 1119 | U60: 43 | V60: 429 | W60: 37 | X60: 313 | Y60: 6452.028115
A61: 2024-07-01 | B61: 2249 | C61: 1169 | D61: 45 | E61: 495 | F61: 35 | G61: 343 | H61: 6551.44169 | J61: =vELDashboard[[#This Row],[Period]] -> 2024-07-01 | K61: =SUM(B49:B61) -> 29450 | L61: 15170 | M61: 437 | N61: 6884 | O61: 472 | P61: 4301 | R61: 2024-07-01 | S61: 2249 | T61: 1169 | U61: 45 | V61: 495 | W61: 35 | X61: 343 | Y61: 6551.44169
A62: 2024-08-01 | B62: 2020 | C62: 1015 | D62: 30 | E62: 443 | F62: 36 | G62: 269 | H62: 6180.392565 | J62: =vELDashboard[[#This Row],[Period]] -> 2024-08-01 | K62: =SUM(B50:B62) -> 29001 | L62: 15024 | M62: 430 | N62: 6738 | O62: 453 | P62: 4221 | R62: 2024-08-01 | S62: 2020 | T62: 1015 | U62: 30 | V62: 443 | W62: 36 | X62: 269 | Y62: 6180.392565
A63: 2024-09-01 | B63: 1975 | C63: 984 | D63: 38 | E63: 502 | F63: 30 | G63: 294 | H63: 7052.727823 | J63: =vELDashboard[[#This Row],[Period]] -> 2024-09-01 | K63: =SUM(B51:B63) -> 28528 | L63: 14668 | M63: 441 | N63: 6608 | O63: 431 | P63: 4195 | R63: 2024-09-01 | S63: 1975 | T63: 984 | U63: 38 | V63: 502 | W63: 30 | X63: 294 | Y63: 7052.727823
A64: 2024-10-01 | B64: 2123 | C64: 1030 | D64: 30 | E64: 459 | F64: 47 | G64: 356 | H64: 6795.443511 | J64: =vELDashboard[[#This Row],[Period]] -> 2024-10-01 | K64: =SUM(B52:B64) -> 28284 | L64: 14547 | M64: 437 | N64: 6442 | O64: 431 | P64: 4259 | R64: 2024-10-01 | S64: 2123 | T64: 1030 | U64: 30 | V64: 459 | W64: 47 | X64: 356 | Y64: 6795.443511
A65: 2024-11-01 | B65: 1873 | C65: 903 | D65: 39 | E65: 488 | F65: 45 | G65: 295 | H65: 7163.420847 | J65: =vELDashboard[[#This Row],[Period]] -> 2024-11-01 | K65: =SUM(B53:B65) -> 27665 | L65: 14257 | M65: 426 | N65: 6384 | O65: 434 | P65: 4217 | R65: 2024-11-01 | S65: 1873 | T65: 903 | U65: 39 | V65: 488 | W65: 45 | X65: 295 | Y65: 7163.420847
A66: 2024-12-01 | B66: 1469 | C66: 835 | D66: 38 | E66: 406 | F66: 28 | G66: 258 | H66: 7259.5781 | J66: =vELDashboard[[#This Row],[Period]] -> 2024-12-01 | K66: =SUM(B54:B66) -> 26609 | L66: 13804 | M66: 429 | N66: 6115 | O66: 440 | P66: 4108 | R66: 2024-12-01 | S66: 1469 | T66: 835 | U66: 38 | V66: 406 | W66: 28 | X66: 258 | Y66: 7259.5781
A67: 2025-01-01 | B67: 2091 | C67: 899 | D67: 18 | E67: 455 | F67: 42 | G67: 315 | H67: 6798.954063 | J67: =vELDashboard[[#This Row],[Period]] -> 2025-01-01 | K67: =SUM(B55:B67) -> 27083 | L67: 13586 | M67: 415 | N67: 6096 | O67: 453 | P67: 4137 | R67: 2025-01-01 | S67: 2091 | T67: 899 | U67: 18 | V67: 455 | W67: 42 | X67: 315 | Y67: 6798.954063
A68: 2025-02-01 | B68: 2003 | C68: 669 | D68: 26 | E68: 386 | F68: 24 | G68: 288 | H68: 6751.603159 | J68: =vELDashboard[[#This Row],[Period]] -> 2025-02-01 | K68: =SUM(B56:B68) -> 26589 | L68: 13104 | M68: 415 | N68: 5938 | O68: 438 | P68: 4082 | R68: 2025-02-01 | S68: 2003 | T68: 669 | U68: 26 | V68: 386 | W68: 24 | X68: 288 | Y68: 6751.603159
A69: 2025-03-01 | B69: 2001 | C69: 898 | D69: 31 | E69: 492 | F69: 39 | G69: 295 | H69: 7203.27383 | J69: =vELDashboard[[#This Row],[Period]] -> 2025-03-01 | K69: =SUM(B57:B69) -> 26318 | L69: 12984 | M69: 420 | N69: 5976 | O69: 446 | P69: 4007 | R69: 2025-03-01 | S69: 2001 | T69: 898 | U69: 31 | V69: 492 | W69: 39 | X69: 295 | Y69: 7203.27383
A70: 2025-04-01 | B70: 1838 | C70: 878 | D70: 22 | E70: 463 | F70: 42 | G70: 265 | H70: 6889.661433 | J70: =vELDashboard[[#This Row],[Period]] -> 2025-04-01 | K70: =SUM(B58:B70) -> 25866 | L70: 12691 | M70: 409 | N70: 5978 | O70: 461 | P70: 3919 | R70: 2025-04-01 | S70: 1838 | T70: 878 | U70: 22 | V70: 463 | W70: 42 | X70: 265 | Y70: 6889.661433

Sheet Year Calculations (hidden)
A1: Period | B1: CNFs sent | C1: CNFs left at stage 1 | D1: Stage 2 exit | E1: Exit process | F1: Court pack | G1: Settled claims
A2: 2013-14 | B2: =SUM('Backing Sheet Data'!#REF!) ->  | C2: =SUM('Backing Sheet Data'!#REF!) ->  | D2: =SUM('Backing Sheet Data'!#REF!) ->  | E2: =SUM('Backing Sheet Data'!#REF!) ->  | F2: =SUM('Backing Sheet Data'!#REF!) ->  | G2: =SUM('Backing Sheet Data'!#REF!) -> 
A3: 2014-15 | B3: =SUM('Backing Sheet Data'!#REF!) ->  | C3: =SUM('Backing Sheet Data'!#REF!) ->  | D3: =SUM('Backing Sheet Data'!#REF!) ->  | E3: =SUM('Backing Sheet Data'!#REF!) ->  | F3: =SUM('Backing Sheet Data'!#REF!) ->  | G3: =SUM('Backing Sheet Data'!#REF!) -> 
A4: 2015-16 | B4: =SUM('Backing Sheet Data'!#REF!) ->  | C4: =SUM('Backing Sheet Data'!#REF!) ->  | D4: =SUM('Backing Sheet Data'!#REF!) ->  | E4: =SUM('Backing Sheet Data'!#REF!) ->  | F4: =SUM('Backing Sheet Data'!#REF!) ->  | G4: =SUM('Backing Sheet Data'!#REF!) -> 
A5: 2016-17 | B5: =SUM('Backing Sheet Data'!#REF!) ->  | C5: =SUM('Backing Sheet Data'!#REF!) ->  | D5: =SUM('Backing Sheet Data'!#REF!) ->  | E5: =SUM('Backing Sheet Data'!#REF!) ->  | F5: =SUM('Backing Sheet Data'!#REF!) ->  | G5: =SUM('Backing Sheet Data'!#REF!) -> 
A6: 2017-18 | B6: =SUM('Backing Sheet Data'!#REF!) ->  | C6: =SUM('Backing Sheet Data'!#REF!) ->  | D6: =SUM('Backing Sheet Data'!#REF!) ->  | E6: =SUM('Backing Sheet Data'!#REF!) ->  | F6: =SUM('Backing Sheet Data'!#REF!) ->  | G6: =SUM('Backing Sheet Data'!#REF!) -> 
A7: 2018-19 | B7: =SUM('Backing Sheet Data'!#REF!) ->  | C7: =SUM('Backing Sheet Data'!#REF!) ->  | D7: =SUM('Backing Sheet Data'!#REF!) ->  | E7: =SUM('Backing Sheet Data'!#REF!) ->  | F7: =SUM('Backing Sheet Data'!#REF!) ->  | G7: =SUM('Backing Sheet Data'!#REF!) -> 
A8: 2019-20 | B8: =SUM('Backing Sheet Data'!#REF!) ->  | C8: =SUM('Backing Sheet Data'!#REF!) ->  | D8: =SUM('Backing Sheet Data'!#REF!) ->  | E8: =SUM('Backing Sheet Data'!#REF!) ->  | F8: =SUM('Backing Sheet Data'!#REF!) ->  | G8: =SUM('Backing Sheet Data'!#REF!) -> 
A9: 2020-21 | B9: =SUM('Backing Sheet Data'!#REF!) ->  | C9: =SUM('Backing Sheet Data'!#REF!) ->  | D9: =SUM('Backing Sheet Data'!#REF!) ->  | E9: =SUM('Backing Sheet Data'!#REF!) ->  | F9: =SUM('Backing Sheet Data'!#REF!) ->  | G9: =SUM('Backing Sheet Data'!#REF!) -> 
